[Event "*** SCC Grand Prix: Titled Tuesday Blitz"]
[Site "Chess.com"]
[Date "2020.06.02"]
[Round "1"]
[White "Nastya_Rakhmangulova"]
[Black "jb2mix"]
[Result "0-1"]
[WhiteElo "2349"]
[BlackElo "2700"]
[TimeControl "180+1"]
[EndTime "10:05:56 PDT"]
[Termination "jb2mix won by resignation"]

1. e4 {[%clk 0:03:00]} 1... e5 {[%clk 0:02:48.3]} 2. Nf3 {[%clk 0:02:58.9]} 2...
Nc6 {[%clk 0:02:48.3]} 3. c3 {[%clk 0:02:58.6]} 3... Nf6 {[%clk 0:02:48.3]} 4.
d4 {[%clk 0:02:58.1]} 4... Bd6 {[%clk 0:02:32.1]} 5. dxe5 {[%clk 0:02:36.7]}
5... Nxe5 {[%clk 0:02:31.2]} 6. Nxe5 {[%clk 0:02:29.7]} 6... Bxe5 {[%clk
0:02:32.1]} 7. Bg5 {[%clk 0:01:30.5]} 7... h6 {[%clk 0:02:29.7]} 8. Bxf6 {[%clk
0:01:29.2]} 8... Qxf6 {[%clk 0:02:28.7]} 9. g3 {[%clk 0:01:15.9]} 9... Bd6
{[%clk 0:02:16.8]} 10. Bg2 {[%clk 0:01:15]} 10... O-O {[%clk 0:02:13.5]} 11. O-O
{[%clk 0:01:14.7]} 11... Re8 {[%clk 0:02:10.3]} 12. Nd2 {[%clk 0:01:13.8]} 12...
Bf8 {[%clk 0:01:59.8]} 13. f4 {[%clk 0:01:05.7]} 13... Qb6+ {[%clk 0:01:59.5]}
14. Kh1 {[%clk 0:00:48.3]} 14... Qxb2 {[%clk 0:02:00.4]} 15. e5 {[%clk
0:00:39.3]} 15... Qxc3 {[%clk 0:01:57.9]} 16. Ne4 {[%clk 0:00:38.6]} 16... Qb4
{[%clk 0:01:54.2]} 17. Rb1 {[%clk 0:00:36.1]} 17... Qe7 {[%clk 0:01:50.6]} 18.
Qh5 {[%clk 0:00:20.1]} 18... g6 {[%clk 0:01:41.4]} 19. Qf3 {[%clk 0:00:14.2]}
19... Bg7 {[%clk 0:01:40.3]} 20. Rfd1 {[%clk 0:00:13.9]} 20... Rb8 {[%clk
0:01:38.3]} 21. Qf2 {[%clk 0:00:11.6]} 21... b6 {[%clk 0:01:38.3]} 22. Nc3
{[%clk 0:00:07.8]} 22... Bb7 {[%clk 0:01:38.6]} 23. Bxb7 {[%clk 0:00:07.4]}
23... Rxb7 {[%clk 0:01:39.5]} 24. Nd5 {[%clk 0:00:07.9]} 24... Qf8 {[%clk
0:01:36.2]} 25. Rbc1 {[%clk 0:00:07.2]} 25... c6 {[%clk 0:01:33]} 26. Nc3 {[%clk
0:00:07.4]} 26... d5 {[%clk 0:01:25.3]} 27. exd6 {[%clk 0:00:05.8]} 27... Rd7
{[%clk 0:01:25.6]} 28. Ne2 {[%clk 0:00:03.4]} 28... Red8 {[%clk 0:01:24.8]} 29.
Ng1 {[%clk 0:00:03]} 29... Rxd6 {[%clk 0:01:25.1]} 30. Nf3 {[%clk 0:00:03.5]}
30... Rxd1+ {[%clk 0:01:24.9]} 31. Rxd1 {[%clk 0:00:04.4]} 31... Rxd1+ {[%clk
0:01:25]} 0-1

[Event "*** SCC Grand Prix: Titled Tuesday Blitz"]
[Site "Chess.com"]
[Date "2020.06.02"]
[Round "1"]
[White "stolencandy13"]
[Black "silverback96"]
[Result "1-0"]
[WhiteElo "2557"]
[BlackElo "2209"]
[TimeControl "180+1"]
[EndTime "10:05:58 PDT"]
[Termination "stolencandy13 won by resignation"]

1. e4 {[%clk 0:03:00.2]} 1... e6 {[%clk 0:02:56.2]} 2. d4 {[%clk 0:02:59.4]}
2... d5 {[%clk 0:02:56.7]} 3. Nd2 {[%clk 0:03:00.3]} 3... Nf6 {[%clk 0:02:56.2]}
4. e5 {[%clk 0:02:59.5]} 4... Nfd7 {[%clk 0:02:56.7]} 5. Bd3 {[%clk 0:03:00.1]}
5... c5 {[%clk 0:02:57.6]} 6. c3 {[%clk 0:02:58.3]} 6... Nc6 {[%clk 0:02:58.2]}
7. Ne2 {[%clk 0:02:58]} 7... cxd4 {[%clk 0:02:58.2]} 8. cxd4 {[%clk 0:02:58.1]}
8... f6 {[%clk 0:02:58.8]} 9. exf6 {[%clk 0:02:58.6]} 9... Nxf6 {[%clk
0:02:59.7]} 10. O-O {[%clk 0:02:59.2]} 10... Bd6 {[%clk 0:03:00.4]} 11. Nf3
{[%clk 0:02:59.6]} 11... Qc7 {[%clk 0:03:01.1]} 12. Bd2 {[%clk 0:02:55.2]} 12...
O-O {[%clk 0:03:00.5]} 13. Rc1 {[%clk 0:02:52.9]} 13... Ng4 {[%clk 0:02:40.1]}
14. Ng3 {[%clk 0:02:49.3]} 14... Bd7 {[%clk 0:01:47.8]} 15. Bxh7+ {[%clk
0:02:39.4]} 15... Kxh7 {[%clk 0:01:12.8]} 16. Ng5+ {[%clk 0:02:39]} 16... Kg8
{[%clk 0:01:13.1]} 17. Qxg4 {[%clk 0:02:39]} 17... e5 {[%clk 0:01:13.7]} 18. Qh5
{[%clk 0:02:27.5]} 18... Rfe8 {[%clk 0:00:45]} 19. Qf7+ {[%clk 0:01:59]} 19...
Kh8 {[%clk 0:00:44.4]} 20. Qg6 {[%clk 0:01:55.6]} 20... Kg8 {[%clk 0:00:41.9]}
21. Nh5 {[%clk 0:01:54.2]} 21... Bg4 {[%clk 0:00:16.3]} 22. Nf6+ {[%clk
0:01:48.6]} 22... Kf8 {[%clk 0:00:13.5]} 23. Nxg4 {[%clk 0:01:47.7]} 23... exd4
{[%clk 0:00:11.9]} 24. Rce1 {[%clk 0:01:44.6]} 24... Rxe1 {[%clk 0:00:07]} 25.
Rxe1 {[%clk 0:01:43.8]} 25... d3 {[%clk 0:00:06.9]} 26. Nh7+ {[%clk 0:01:34.5]}
26... Kg8 {[%clk 0:00:06.3]} 27. Nh6+ {[%clk 0:01:28.3]} 27... Kh8 {[%clk
0:00:06]} 28. Nf7+ {[%clk 0:01:28.4]} 28... Qxf7 {[%clk 0:00:05.9]} 29. Qxf7
{[%clk 0:01:27.2]} 29... Kxh7 {[%clk 0:00:06.8]} 30. Qf5+ {[%clk 0:01:21.8]}
30... Kg8 {[%clk 0:00:06.7]} 31. Qxd5+ {[%clk 0:01:21]} 1-0

[Event "*** SCC Grand Prix: Titled Tuesday Blitz"]
[Site "Chess.com"]
[Date "2020.06.02"]
[Round "1"]
[White "Vesper2018"]
[Black "kushagramohan"]
[Result "1-0"]
[WhiteElo "2340"]
[BlackElo "2643"]
[TimeControl "180+1"]
[EndTime "10:06:00 PDT"]
[Termination "Vesper2018 won by resignation"]

1. e4 {[%clk 0:02:59.2]} 1... e5 {[%clk 0:02:59.9]} 2. Nf3 {[%clk 0:02:59.2]}
2... Nc6 {[%clk 0:03:00.5]} 3. Bc4 {[%clk 0:02:59.4]} 3... Bc5 {[%clk
0:02:59.7]} 4. d3 {[%clk 0:02:58.9]} 4... Nf6 {[%clk 0:02:59.8]} 5. Bg5 {[%clk
0:02:57.9]} 5... h6 {[%clk 0:02:59.2]} 6. Bh4 {[%clk 0:02:57.9]} 6... Be7 {[%clk
0:02:59.8]} 7. c3 {[%clk 0:02:56.3]} 7... O-O {[%clk 0:02:59.5]} 8. O-O {[%clk
0:02:56.2]} 8... d6 {[%clk 0:02:58.3]} 9. Bg3 {[%clk 0:02:56.1]} 9... a6 {[%clk
0:02:53.5]} 10. Bb3 {[%clk 0:02:52.5]} 10... Nh5 {[%clk 0:02:48.9]} 11. Nbd2
{[%clk 0:02:41.4]} 11... Nxg3 {[%clk 0:02:45.8]} 12. fxg3 {[%clk 0:02:40.6]}
12... Kh8 {[%clk 0:02:44.5]} 13. Nc4 {[%clk 0:02:37.7]} 13... f5 {[%clk
0:02:41.8]} 14. Ne3 {[%clk 0:02:32.8]} 14... Bg5 {[%clk 0:02:26.6]} 15. Nxg5
{[%clk 0:02:13.7]} 15... Qxg5 {[%clk 0:02:27.5]} 16. Nd5 {[%clk 0:02:13.8]}
16... f4 {[%clk 0:01:54.4]} 17. Nxc7 {[%clk 0:02:00]} 17... Bg4 {[%clk
0:01:53.3]} 18. Qe1 {[%clk 0:01:51.4]} 18... Na5 {[%clk 0:01:46.3]} 19. Nxa8
{[%clk 0:01:46.5]} 19... Nxb3 {[%clk 0:01:42.6]} 20. axb3 {[%clk 0:01:46.6]}
20... Rxa8 {[%clk 0:01:41.6]} 21. gxf4 {[%clk 0:01:39.1]} 21... exf4 {[%clk
0:01:41.9]} 22. Qd2 {[%clk 0:01:39.2]} 22... Rf8 {[%clk 0:01:41.8]} 23. Rf2
{[%clk 0:01:35]} 23... Bh3 {[%clk 0:01:36.5]} 24. Kh1 {[%clk 0:01:20.6]} 24...
Be6 {[%clk 0:01:13.5]} 25. Raf1 {[%clk 0:01:17.8]} 25... Bxb3 {[%clk 0:01:12.7]}
26. Rxf4 {[%clk 0:01:17.1]} 26... Rxf4 {[%clk 0:01:12.8]} 27. Qxf4 {[%clk
0:00:48.1]} 27... Qg6 {[%clk 0:01:13.2]} 28. Qf8+ {[%clk 0:00:35.4]} 28... Bg8
{[%clk 0:01:12.1]} 29. Rf5 {[%clk 0:00:30.5]} 29... Qg4 {[%clk 0:01:10.1]} 30.
Rf3 {[%clk 0:00:30]} 30... Qh4 {[%clk 0:01:10.1]} 31. g3 {[%clk 0:00:29.7]}
31... Qg4 {[%clk 0:01:06.7]} 32. Qf5 {[%clk 0:00:28.8]} 1-0

[Event "*** SCC Grand Prix: Titled Tuesday Blitz"]
[Site "Chess.com"]
[Date "2020.06.02"]
[Round "1"]
[White "eightbyeightchess"]
[Black "Lestofante90"]
[Result "0-1"]
[WhiteElo "2401"]
[BlackElo "2800"]
[TimeControl "180+1"]
[EndTime "10:06:01 PDT"]
[Termination "Lestofante90 won by resignation"]

1. e4 {[%clk 0:03:00.9]} 1... c5 {[%clk 0:02:59.3]} 2. Nf3 {[%clk 0:03:00.3]}
2... Nc6 {[%clk 0:02:59]} 3. d4 {[%clk 0:02:57.9]} 3... cxd4 {[%clk 0:02:59]} 4.
Nxd4 {[%clk 0:02:55.9]} 4... Nf6 {[%clk 0:02:58]} 5. Nc3 {[%clk 0:02:55.8]} 5...
d6 {[%clk 0:02:56.8]} 6. Be2 {[%clk 0:02:53.3]} 6... g6 {[%clk 0:02:56.1]} 7.
Be3 {[%clk 0:02:52.6]} 7... Bg7 {[%clk 0:02:55.4]} 8. Nb3 {[%clk 0:02:44.3]}
8... O-O {[%clk 0:02:51.8]} 9. f4 {[%clk 0:02:43.2]} 9... a6 {[%clk 0:02:43.8]}
10. a4 {[%clk 0:02:40.3]} 10... Be6 {[%clk 0:02:33.4]} 11. O-O {[%clk
0:02:33.9]} 11... Rc8 {[%clk 0:02:31.9]} 12. a5 {[%clk 0:02:12.4]} 12... Bxb3
{[%clk 0:02:22.5]} 13. Bb6 {[%clk 0:02:11.6]} 13... Bxc2 {[%clk 0:02:14.4]} 14.
Qxc2 {[%clk 0:02:09.7]} 14... Qd7 {[%clk 0:02:05.1]} 15. Qd2 {[%clk 0:02:06.4]}
15... Nb4 {[%clk 0:01:39.9]} 16. Bf3 {[%clk 0:01:47.2]} 16... Qe6 {[%clk
0:01:24.2]} 17. Rae1 {[%clk 0:01:34.9]} 17... Nd7 {[%clk 0:01:20.1]} 18. Bf2
{[%clk 0:01:32.4]} 18... Nc5 {[%clk 0:01:16.1]} 19. f5 {[%clk 0:01:14.6]} 19...
Qb3 {[%clk 0:01:11.8]} 20. Nd5 {[%clk 0:00:55.7]} 20... Nxd5 {[%clk 0:01:07.3]}
21. exd5 {[%clk 0:00:56.6]} 21... Rfe8 {[%clk 0:00:52.2]} 22. fxg6 {[%clk
0:00:55.5]} 22... hxg6 {[%clk 0:00:51.6]} 23. Bd4 {[%clk 0:00:50.4]} 23... Qd3
{[%clk 0:00:46.4]} 24. Qxd3 {[%clk 0:00:34.5]} 24... Nxd3 {[%clk 0:00:47.3]} 25.
Re4 {[%clk 0:00:32.4]} 25... Bxd4+ {[%clk 0:00:45.6]} 26. Rxd4 {[%clk
0:00:33.3]} 26... Ne5 {[%clk 0:00:46]} 27. Rb4 {[%clk 0:00:29.5]} 27... Rc7
{[%clk 0:00:44.1]} 28. Kf2 {[%clk 0:00:27.5]} 28... Nd3+ {[%clk 0:00:43.3]} 0-1

[Event "*** SCC Grand Prix: Titled Tuesday Blitz"]
[Site "Chess.com"]
[Date "2020.06.02"]
[Round "1"]
[White "TigranMukhutdinov"]
[Black "yonaltimur"]
[Result "1-0"]
[WhiteElo "2458"]
[BlackElo "1497"]
[TimeControl "180+1"]
[EndTime "10:06:01 PDT"]
[Termination "TigranMukhutdinov won on time"]

1. Nf3 {[%clk 0:03:00.9]} 1... d5 {[%clk 0:02:59.5]} 2. g3 {[%clk 0:03:01]} 2...
c5 {[%clk 0:02:54.6]} 3. Bg2 {[%clk 0:03:00.9]} 3... Nc6 {[%clk 0:02:52.5]} 4.
d4 {[%clk 0:03:01.4]} 4... e6 {[%clk 0:02:47.5]} 5. O-O {[%clk 0:02:58.4]} 5...
Nf6 {[%clk 0:02:43.9]} 6. c4 {[%clk 0:02:54.4]} 6... dxc4 {[%clk 0:02:36.9]} 7.
dxc5 {[%clk 0:02:54.4]} 7... Bxc5 {[%clk 0:02:13.9]} 8. Qxd8+ {[%clk 0:02:48.8]}
8... Kxd8 {[%clk 0:02:12.1]} 9. Nbd2 {[%clk 0:02:48.1]} 9... Ke7 {[%clk
0:02:04.4]} 10. Nxc4 {[%clk 0:02:47.3]} 10... Rd8 {[%clk 0:01:56.9]} 11. b3
{[%clk 0:02:47.1]} 11... Bd7 {[%clk 0:01:56.4]} 12. Bb2 {[%clk 0:02:44.9]} 12...
Be8 {[%clk 0:01:55.4]} 13. Rac1 {[%clk 0:02:39.5]} 13... Rac8 {[%clk 0:01:52.9]}
14. Nce5 {[%clk 0:02:39]} 14... Nxe5 {[%clk 0:01:48.4]} 15. Nxe5 {[%clk
0:02:39.9]} 15... Nd5 {[%clk 0:01:44.7]} 16. Rxc5 {[%clk 0:02:28.3]} 16... Rxc5
{[%clk 0:01:40.4]} 17. Ba3 {[%clk 0:02:28.9]} 17... b6 {[%clk 0:01:25.6]} 18.
Nd3 {[%clk 0:02:28.6]} 18... Rc8 {[%clk 0:01:06.9]} 19. Nxc5 {[%clk 0:02:24.3]}
19... bxc5 {[%clk 0:01:05.1]} 20. Rc1 {[%clk 0:02:25]} 20... Kd6 {[%clk
0:01:02.4]} 21. e4 {[%clk 0:02:24.8]} 21... Nb6 {[%clk 0:00:53.6]} 22. f4 {[%clk
0:02:24.6]} 22... f6 {[%clk 0:00:51.5]} 23. Kf2 {[%clk 0:02:20.5]} 23... Bb5
{[%clk 0:00:50.3]} 24. Ke3 {[%clk 0:02:14.4]} 24... h5 {[%clk 0:00:32]} 25. Bf3
{[%clk 0:02:10]} 25... g6 {[%clk 0:00:27.8]} 26. h4 {[%clk 0:02:10.6]} 26... a5
{[%clk 0:00:20.3]} 27. f5 {[%clk 0:02:01.2]} 27... exf5 {[%clk 0:00:17.2]} 28.
exf5 {[%clk 0:02:00.8]} 28... gxf5 {[%clk 0:00:08.3]} 29. Bxh5 {[%clk
0:02:00.6]} 29... Nd5+ {[%clk 0:00:07.7]} 30. Kf2 {[%clk 0:01:58.4]} 30... Rc7
{[%clk 0:00:05.2]} 31. Rd1 {[%clk 0:01:54.3]} 31... Ke5 {[%clk 0:00:04.7]} 32.
Bf3 {[%clk 0:01:49.1]} 32... Nb4 {[%clk 0:00:03.2]} 33. Bc1 {[%clk 0:01:49.1]}
33... Ke6 {[%clk 0:00:01.6]} 34. Bf4 {[%clk 0:01:49.1]} 34... Re7 {[%clk
0:00:02.2]} 35. Re1+ {[%clk 0:01:44.1]} 1-0

[Event "*** SCC Grand Prix: Titled Tuesday Blitz"]
[Site "Chess.com"]
[Date "2020.06.02"]
[Round "1"]
[White "Dmitry_Konenkin"]
[Black "novendrapriasmoro"]
[Result "0-1"]
[WhiteElo "2258"]
[BlackElo "2601"]
[TimeControl "180+1"]
[EndTime "10:06:03 PDT"]
[Termination "novendrapriasmoro won on time"]

1. d4 {[%clk 0:02:54.7]} 1... Nf6 {[%clk 0:03:00]} 2. Bg5 {[%clk 0:02:54.6]}
2... Ne4 {[%clk 0:02:58.6]} 3. Bh4 {[%clk 0:02:54.1]} 3... g5 {[%clk 0:02:54.7]}
4. f3 {[%clk 0:02:54]} 4... gxh4 {[%clk 0:02:51.2]} 5. fxe4 {[%clk 0:02:54.2]}
5... Bg7 {[%clk 0:02:40.8]} 6. e3 {[%clk 0:02:43.1]} 6... c5 {[%clk 0:02:40.6]}
7. c3 {[%clk 0:02:41.5]} 7... Qb6 {[%clk 0:02:39.2]} 8. Qb3 {[%clk 0:02:25.2]}
8... d6 {[%clk 0:02:38.2]} 9. Bc4 {[%clk 0:02:18.6]} 9... Qxb3 {[%clk
0:02:27.4]} 10. axb3 {[%clk 0:02:03.9]} 10... Bh6 {[%clk 0:02:23.7]} 11. Kf2
{[%clk 0:01:51.7]} 11... Nd7 {[%clk 0:02:19.6]} 12. Nf3 {[%clk 0:01:47.6]} 12...
Nf6 {[%clk 0:02:19.6]} 13. Nxh4 {[%clk 0:01:04.6]} 13... Nxe4+ {[%clk
0:02:13.9]} 14. Kf3 {[%clk 0:00:58.7]} 14... f5 {[%clk 0:02:06.7]} 15. Rd1
{[%clk 0:00:43.5]} 15... Nf6 {[%clk 0:01:56.3]} 16. h3 {[%clk 0:00:27.5]} 16...
Bd7 {[%clk 0:01:53.1]} 17. Nd2 {[%clk 0:00:19.9]} 17... e5 {[%clk 0:01:51]} 18.
dxe5 {[%clk 0:00:18.1]} 18... dxe5 {[%clk 0:01:51.9]} 19. Ke2 {[%clk 0:00:17.3]}
19... b5 {[%clk 0:01:48.6]} 20. Bd3 {[%clk 0:00:16.5]} 20... e4 {[%clk
0:01:48.7]} 21. Bc2 {[%clk 0:00:16.3]} 21... a5 {[%clk 0:01:37.7]} 22. Rf1
{[%clk 0:00:11.9]} 22... Rg8 {[%clk 0:01:31.1]} 23. Rf2 {[%clk 0:00:07.1]} 23...
Nd5 {[%clk 0:01:29]} 24. Nf1 {[%clk 0:00:04.7]} 24... Ne7 {[%clk 0:01:23.1]} 25.
Rd1 {[%clk 0:00:04.9]} 25... Bg5 {[%clk 0:01:21.8]} 26. g3 {[%clk 0:00:04.4]}
26... Bxh4 {[%clk 0:01:13.7]} 27. gxh4 {[%clk 0:00:05.3]} 27... Ng6 {[%clk
0:01:14.1]} 28. h5 {[%clk 0:00:04]} 28... Ne5 {[%clk 0:01:14.2]} 0-1

[Event "*** SCC Grand Prix: Titled Tuesday Blitz"]
[Site "Chess.com"]
[Date "2020.06.02"]
[Round "1"]
[White "pedromartinez91"]
[Black "aRk_iN"]
[Result "1-0"]
[WhiteElo "2506"]
[BlackElo "2094"]
[TimeControl "180+1"]
[EndTime "10:06:03 PDT"]
[Termination "pedromartinez91 won by resignation"]

1. e4 {[%clk 0:03:00.3]} 1... c6 {[%clk 0:02:43.8]} 2. c4 {[%clk 0:02:56.3]}
2... d5 {[%clk 0:02:43.3]} 3. exd5 {[%clk 0:02:56.4]} 3... cxd5 {[%clk
0:02:42.4]} 4. cxd5 {[%clk 0:02:57.3]} 4... Nf6 {[%clk 0:02:42.2]} 5. Qa4+
{[%clk 0:02:52.7]} 5... Nbd7 {[%clk 0:02:38.3]} 6. Nc3 {[%clk 0:02:51.9]} 6...
g6 {[%clk 0:02:34.2]} 7. Bc4 {[%clk 0:02:50.7]} 7... Bg7 {[%clk 0:02:30.3]} 8.
d3 {[%clk 0:02:49.2]} 8... O-O {[%clk 0:02:29.3]} 9. Nf3 {[%clk 0:02:49.2]} 9...
a6 {[%clk 0:02:21]} 10. Qa3 {[%clk 0:02:44]} 10... b6 {[%clk 0:02:17.5]} 11. O-O
{[%clk 0:02:41.1]} 11... Bb7 {[%clk 0:02:17.3]} 12. Re1 {[%clk 0:02:40.7]} 12...
Re8 {[%clk 0:02:14.9]} 13. Ng5 {[%clk 0:02:40.2]} 13... b5 {[%clk 0:01:58.7]}
14. Bb3 {[%clk 0:02:39.6]} 14... Nb6 {[%clk 0:01:58.5]} 15. d6 {[%clk
0:02:29.2]} 15... e6 {[%clk 0:01:58.2]} 16. Bd2 {[%clk 0:01:20.6]} 16... Nbd5
{[%clk 0:01:47.9]} 17. Nxd5 {[%clk 0:01:20.4]} 17... Bxd5 {[%clk 0:01:47.1]} 18.
Ne4 {[%clk 0:01:15.6]} 18... Bxb3 {[%clk 0:01:28.6]} 19. axb3 {[%clk 0:01:13.5]}
19... Nd5 {[%clk 0:01:19.9]} 20. Rac1 {[%clk 0:01:06.6]} 20... f5 {[%clk
0:01:13.7]} 21. Ng5 {[%clk 0:01:03.4]} 21... b4 {[%clk 0:00:54.6]} 22. Qa4
{[%clk 0:00:45.8]} 22... Qxd6 {[%clk 0:00:51]} 23. Rc6 {[%clk 0:00:41.1]} 23...
Qd7 {[%clk 0:00:35.6]} 24. Rxa6 {[%clk 0:00:37.7]} 24... Rxa6 {[%clk 0:00:26.1]}
25. Qxd7 {[%clk 0:00:36.7]} 1-0

[Event "*** SCC Grand Prix: Titled Tuesday Blitz"]
[Site "Chess.com"]
[Date "2020.06.02"]
[Round "1"]
[White "BillieKimbah"]
[Black "Danfii"]
[Result "1-0"]
[WhiteElo "2874"]
[BlackElo "2427"]
[TimeControl "180+1"]
[EndTime "10:06:05 PDT"]
[Termination "BillieKimbah won by resignation"]

1. d4 {[%clk 0:03:00.6]} 1... Nf6 {[%clk 0:02:59.6]} 2. Nf3 {[%clk 0:02:57.4]}
2... e6 {[%clk 0:02:59.5]} 3. Bg5 {[%clk 0:02:56.9]} 3... d5 {[%clk 0:02:57.9]}
4. e3 {[%clk 0:02:56.3]} 4... Be7 {[%clk 0:02:57.8]} 5. c4 {[%clk 0:02:56.1]}
5... h6 {[%clk 0:02:56.3]} 6. Bxf6 {[%clk 0:02:52.8]} 6... Bxf6 {[%clk
0:02:57.2]} 7. Nc3 {[%clk 0:02:52.9]} 7... O-O {[%clk 0:02:55.3]} 8. Rc1 {[%clk
0:02:52.4]} 8... b6 {[%clk 0:02:53.8]} 9. cxd5 {[%clk 0:02:47.9]} 9... exd5
{[%clk 0:02:54.7]} 10. Bd3 {[%clk 0:02:46.6]} 10... Bb7 {[%clk 0:02:53.5]} 11.
b4 {[%clk 0:02:43.5]} 11... c6 {[%clk 0:02:45.9]} 12. O-O {[%clk 0:02:41.9]}
12... a5 {[%clk 0:02:40.6]} 13. b5 {[%clk 0:02:41.1]} 13... c5 {[%clk
0:02:40.1]} 14. dxc5 {[%clk 0:02:31.3]} 14... bxc5 {[%clk 0:02:41]} 15. Na4
{[%clk 0:02:28.9]} 15... c4 {[%clk 0:02:39.2]} 16. Bf5 {[%clk 0:02:19.6]} 16...
g6 {[%clk 0:02:34.4]} 17. Bh3 {[%clk 0:02:19.2]} 17... Nd7 {[%clk 0:02:12.6]}
18. Bxd7 {[%clk 0:02:12.6]} 18... Qxd7 {[%clk 0:02:13.5]} 19. Nb6 {[%clk
0:02:12.1]} 19... Qxb5 {[%clk 0:02:07.1]} 20. Rb1 {[%clk 0:02:12.1]} 20... Qa6
{[%clk 0:01:53.5]} 21. Nxa8 {[%clk 0:02:04.4]} 21... Qxa8 {[%clk 0:01:52.8]} 22.
Nd4 {[%clk 0:02:03.4]} 22... Rc8 {[%clk 0:01:50.9]} 23. Qc2 {[%clk 0:01:54.1]}
23... Qa7 {[%clk 0:01:36.3]} 24. Rfd1 {[%clk 0:01:52.8]} 24... Ba6 {[%clk
0:01:23.9]} 25. h3 {[%clk 0:01:47.1]} 25... Qc5 {[%clk 0:01:21.8]} 26. Qc3
{[%clk 0:01:40.6]} 26... Kg7 {[%clk 0:01:11.5]} 27. Rd2 {[%clk 0:01:38.1]} 27...
h5 {[%clk 0:01:11.4]} 28. Rdb2 {[%clk 0:01:37.3]} 28... Bxd4 {[%clk 0:00:55]}
29. exd4 {[%clk 0:01:36.2]} 29... Qe7 {[%clk 0:00:53.6]} 30. Rb6 {[%clk
0:01:35]} 30... Ra8 {[%clk 0:00:48.7]} 31. Qxa5 {[%clk 0:01:25]} 31... Bb7
{[%clk 0:00:47.7]} 32. Qb5 {[%clk 0:01:11]} 32... Bc8 {[%clk 0:00:41.6]} 33.
Qxd5 {[%clk 0:01:10.3]} 33... Rxa2 {[%clk 0:00:41.5]} 34. Qxc4 {[%clk
0:01:06.7]} 34... Be6 {[%clk 0:00:41]} 35. d5 {[%clk 0:01:03.4]} 1-0

[Event "*** SCC Grand Prix: Titled Tuesday Blitz"]
[Site "Chess.com"]
[Date "2020.06.02"]
[Round "1"]
[White "m_ezat"]
[Black "SophieNikoladze"]
[Result "1-0"]
[WhiteElo "2524"]
[BlackElo "2155"]
[TimeControl "180+1"]
[EndTime "10:06:06 PDT"]
[Termination "m_ezat won by resignation"]

1. d4 {[%clk 0:02:59.1]} 1... b5 {[%clk 0:02:57.8]} 2. e4 {[%clk 0:02:58.3]}
2... Bb7 {[%clk 0:02:57.9]} 3. Bd3 {[%clk 0:02:58.7]} 3... e6 {[%clk 0:02:56.1]}
4. Nf3 {[%clk 0:02:57.7]} 4... c5 {[%clk 0:02:56.2]} 5. c3 {[%clk 0:02:57]} 5...
c4 {[%clk 0:02:52.3]} 6. Bc2 {[%clk 0:02:56.1]} 6... Nf6 {[%clk 0:02:52.2]} 7.
Qe2 {[%clk 0:02:55.4]} 7... Be7 {[%clk 0:02:52.1]} 8. O-O {[%clk 0:02:54.6]}
8... O-O {[%clk 0:02:52.6]} 9. e5 {[%clk 0:02:54.7]} 9... Nd5 {[%clk 0:02:51.9]}
10. Qe4 {[%clk 0:02:54.8]} 10... g6 {[%clk 0:02:48.5]} 11. Qg4 {[%clk 0:02:55]}
11... f5 {[%clk 0:02:48]} 12. Qg3 {[%clk 0:02:40.2]} 12... Nc6 {[%clk
0:02:46.4]} 13. h4 {[%clk 0:02:34.3]} 13... Qc7 {[%clk 0:02:41.1]} 14. h5 {[%clk
0:02:25.6]} 14... Kf7 {[%clk 0:02:36.5]} 15. Bg5 {[%clk 0:02:18.8]} 15... Rg8
{[%clk 0:02:34.7]} 16. Bxe7 {[%clk 0:02:13.2]} 16... Kxe7 {[%clk 0:02:34.7]} 17.
Qh4+ {[%clk 0:02:10.5]} 17... Ke8 {[%clk 0:02:29.8]} 18. Ng5 {[%clk 0:02:03]}
18... Nce7 {[%clk 0:02:28.7]} 19. Nxh7 {[%clk 0:02:02]} 19... gxh5 {[%clk
0:02:25.2]} 20. Nd2 {[%clk 0:01:49.1]} 20... Nf4 {[%clk 0:02:22.2]} 21. Nf6+
{[%clk 0:01:44.4]} 21... Kf7 {[%clk 0:02:22.1]} 22. Nxg8 {[%clk 0:01:35]} 22...
Rxg8 {[%clk 0:02:21.1]} 23. g3 {[%clk 0:01:32.9]} 23... Ned5 {[%clk 0:02:13.8]}
24. Bd1 {[%clk 0:00:36.8]} 24... Ng6 {[%clk 0:02:04]} 25. Bxh5 {[%clk
0:00:35.2]} 25... Qc6 {[%clk 0:02:03.5]} 26. f3 {[%clk 0:00:28.8]} 26... Ne3
{[%clk 0:02:00]} 27. Qf6+ {[%clk 0:00:27.4]} 27... Ke8 {[%clk 0:01:59.2]} 28.
Bxg6+ {[%clk 0:00:27.6]} 28... Rxg6 {[%clk 0:01:58.8]} 29. Qxg6+ {[%clk
0:00:28.1]} 29... Kd8 {[%clk 0:01:59.3]} 30. Qg7 {[%clk 0:00:25.2]} 30... Nxf1
{[%clk 0:01:51.6]} 31. Qf8+ {[%clk 0:00:25.1]} 31... Kc7 {[%clk 0:01:51.1]} 32.
Qd6+ {[%clk 0:00:25.6]} 32... Qxd6 {[%clk 0:01:49]} 33. exd6+ {[%clk 0:00:25.7]}
33... Kxd6 {[%clk 0:01:49.3]} 34. Kxf1 {[%clk 0:00:26]} 34... a5 {[%clk
0:01:48.3]} 35. Kf2 {[%clk 0:00:26.1]} 35... Bd5 {[%clk 0:01:46.9]} 36. a3
{[%clk 0:00:25.7]} 36... Ke7 {[%clk 0:01:45.6]} 37. Rh1 {[%clk 0:00:26]} 37...
Kf6 {[%clk 0:01:45.4]} 38. Rh8 {[%clk 0:00:25.9]} 38... Bc6 {[%clk 0:01:44]} 39.
Rb8 {[%clk 0:00:25.4]} 39... a4 {[%clk 0:01:40.5]} 40. Nf1 {[%clk 0:00:24.5]}
40... Kg5 {[%clk 0:01:40.5]} 41. f4+ {[%clk 0:00:22.5]} 41... Kf6 {[%clk
0:01:40]} 42. Ne3 {[%clk 0:00:22.7]} 42... Kg6 {[%clk 0:01:38.9]} 43. Nc2 {[%clk
0:00:21.6]} 43... Kf6 {[%clk 0:01:38.9]} 44. Nb4 {[%clk 0:00:21.3]} 44... Be4
{[%clk 0:01:37.9]} 45. Rxb5 {[%clk 0:00:20.8]} 1-0